fUSD/lending_fUSD_20240104
["ID","MTS","AMOUNT","RATE_DAILY","PERIOD"]
[310204299,1704400265521,-500.0,0.00033698,2]
[310204300,1704400265531,-565.27,0.00033698,2]
[310204301,1704400265540,-799.36,0.00033698,2]
[310204302,1704400265549,-500.0,0.00033698,2]
[310204303,1704400265559,-500.0,0.00033698,2]
[310204304,1704400265568,-500.0,0.00033698,2]
[310204305,1704400265577,-500.0,0.00033698,2]
[310204306,1704400265587,-500.0,0.00033698,2]
[310204307,1704400265596,-1533.04,0.00033698,2]
[310204308,1704400265605,-1291.64,0.00033698,2]
[310204309,1704400265615,-654.95,0.00033698,2]
[310204310,1704400265625,-500.0,0.00033698,2]
[310204311,1704400265634,-1046.38,0.00033698,2]
[310204312,1704400265643,-500.0,0.00033698,2]
[310204313,1704400265652,-500.0,0.00033698,2]
[310204314,1704400265662,-1168.15,0.00033698,2]
[310204315,1704400265671,-1279.36,0.00033698,2]
[310204316,1704400265682,-500.0,0.00033698,2]
[310204317,1704400265692,-500.0,0.00033698,2]
[310204318,1704400265701,-774.31,0.00033698,2]
[310204319,1704400265710,-500.0,0.00033698,2]
[310204320,1704400265720,-1178.66,0.00033698,2]
[310204321,1704400265729,-2705.72,0.00033698,2]
[310204322,1704400265738,-500.0,0.00033698,2]
[310204323,1704400265748,-525.34249906,0.00033698,2]
[310204324,1704400265757,-540.01,0.00033698,2]
[310204325,1704400265767,-500.0,0.00033698,2]
[310204326,1704400265776,-800.68,0.00033698,2]
[310204327,1704400265786,-683.02,0.00033698,2]
[310204328,1704400265796,-500.0,0.00033698,2]
[310204329,1704400265806,-1033.15,0.00033698,2]
[310204330,1704400265816,-500.0,0.00033698,2]
[310204331,1704400265825,-500.0,0.00033698,2]
[310204332,1704400265834,-664.5,0.00033698,2]
[310204333,1704400265844,-5429.5,0.00033698,2]
[310204334,1704400265853,-787.99,0.00033698,2]
[310204335,1704400265863,-500.0,0.00033698,2]
[310204336,1704400265873,-500.0,0.00033698,2]
[310204337,1704400265882,-1185.9,0.00033698,2]
[310204338,1704400265891,-500.0,0.00033698,2]
[310204339,1704400265901,-502.99,0.00033698,2]
[310204340,1704400265911,-803.67,0.00033698,2]
[310204341,1704400265920,-500.0,0.00033698,2]
[310204342,1704400265930,-703.08,0.00033698,2]
[310204343,1704400265940,-500.0,0.00033698,2]
[310204344,1704400265949,-931.91,0.00033698,2]
[310204345,1704400265959,-500.0,0.00033698,2]
[310204346,1704400265968,-3045.47,0.00033698,2]
[310204347,1704400265978,-500.0,0.00033698,2]
[310204348,1704400265987,-500.0,0.00033698,2]
[310204349,1704400265997,-924.28,0.00033698,2]
[310204350,1704400266007,-500.0,0.00033698,2]
[310204351,1704400266017,-612.45,0.00033698,2]
[310204352,1704400266027,-1664.58,0.00033698,2]
[310204353,1704400266036,-1719.17,0.00033698,2]
[310204354,1704400266046,-650.67,0.00033698,2]
[310204355,1704400266055,-500.0,0.00033698,2]
[310204356,1704400266065,-837.7,0.00033698,2]
[310204357,1704400266074,-651.85,0.00033698,2]
[310204358,1704400266084,-1763.88,0.00033698,2]
[310204359,1704400266094,-500.0,0.00033698,2]
[310204360,1704400266103,-500.0,0.00033698,2]
[310204361,1704400266113,-5455.26,0.00033698,2]
[310204362,1704400266122,-595.32,0.00033698,2]
[310204363,1704400266132,-500.0,0.00033698,2]
[310204364,1704400266141,-500.0,0.00033698,2]
[310204365,1704400266150,-500.0,0.00033698,2]
[310204366,1704400266160,-864.85,0.00033698,2]
[310204367,1704400266169,-1546.03,0.00033698,2]
[310204368,1704400266179,-500.0,0.00033698,2]
[310204369,1704400266188,-500.0,0.00033698,2]
[310204370,1704400266201,-591.13875193,0.00033698,2]
[310204371,1704400266210,-618.44,0.00033698,2]
[310204372,1704400266220,-1928.75,0.00033698,2]
[310204373,1704400266229,-500.0,0.00033698,2]
[310204374,1704400266239,-500.0,0.00033698,2]
[310204375,1704400266248,-575.7,0.00033698,2]
[310204376,1704400266258,-589.02,0.00033698,2]
[310204377,1704400266268,-2873.21,0.00033698,2]
[310204378,1704400266278,-500.0,0.00033698,2]
[310204379,1704400266287,-500.0,0.00033698,2]
[310204380,1704400266296,-501.82,0.00033698,2]
[310204381,1704400266306,-500.0,0.00033698,2]
[310204382,1704400266315,-500.0,0.00033698,2]
[310204383,1704400266325,-500.0,0.00033698,2]
[310204384,1704400266335,-500.0,0.00033698,2]
[310204385,1704400266344,-902.0,0.00033698,2]
[310204386,1704400266354,-500.0,0.00033698,2]
[310204387,1704400266364,-609.88319126,0.00033698,2]
[310204388,1704400266373,-500.0,0.00033698,2]
[310204389,1704400266383,-500.0,0.00033698,2]
[310204390,1704400266393,-1565.07,0.00033698,2]
[310204391,1704400266403,-1472.89,0.00033698,2]
[310204392,1704400266413,-6496.65,0.00033698,2]
[310204393,1704400266422,-500.0,0.00033698,2]
[310204394,1704400266432,-864.86,0.00033698,2]
[310204395,1704400266444,-500.0,0.00033698,2]
[310204396,1704400266453,-500.0,0.00033698,2]
[310204397,1704400266464,-500.0,0.00033698,2]
[310204398,1704400266474,-500.0,0.00033698,2]
[310204399,1704400266485,-500.0,0.00033698,2]
[310204400,1704400266495,-500.0,0.00033698,2]
[310204401,1704400266510,-500.0,0.00033698,2]
[310204402,1704400266520,-659.36,0.00033698,2]
[310204403,1704400266529,-500.0,0.00033698,2]
[310204404,1704400266541,-539.42,0.00033698,2]
[310204405,1704400266554,-2834.51,0.00033698,2]
[310204406,1704400266564,-500.0,0.00033698,2]
[310204407,1704400266574,-535.67,0.00033698,2]
[310204408,1704400266584,-500.0,0.00033698,2]
[310204409,1704400266594,-772.31,0.00033698,2]
[310204410,1704400266605,-500.0,0.00033698,2]
[310204411,1704400266614,-1511.83,0.00033698,2]
[310204412,1704400266624,-500.0,0.00033698,2]
[310204413,1704400266634,-730.25,0.00033698,2]
[310204414,1704400266645,-500.0,0.00033698,2]
[310204415,1704400266655,-597.99,0.00033698,2]
[310204416,1704400266665,-1373.46,0.00033698,2]
[310204417,1704400266675,-500.0,0.00033698,2]
[310204418,1704400266685,-500.0,0.00033698,2]
[310204419,1704400266696,-1411.58,0.00033698,2]
[310204420,1704400266707,-500.0,0.00033698,2]
[310204421,1704400266717,-1122.72,0.00033698,2]
[310204422,1704400266727,-844.92,0.00033698,2]
[310204423,1704400266737,-500.0,0.00033698,2]
[310204424,1704400266747,-500.0,0.00033698,2]
[310204425,1704400266756,-500.0,0.00033698,2]
[310204426,1704400266766,-504.31072627,0.00033698,2]
[310204427,1704400266776,-500.0,0.00033698,2]
[310204428,1704400266786,-938.79,0.00033698,2]
[310204429,1704400266796,-700.27,0.00033698,2]
[310204430,1704400266806,-500.0,0.00033698,2]
[310204431,1704400266816,-500.0,0.00033698,2]
[310204432,1704400266826,-2603.65,0.00033698,2]
[310204433,1704400266836,-500.0,0.00033698,2]
[310204434,1704400266846,-500.0,0.00033698,2]
[310204435,1704400266857,-500.0,0.00033698,2]
[310204436,1704400266867,-690.56,0.00033698,2]
[310204437,1704400266877,-616.51679766,0.00033698,2]
[310204438,1704400266887,-1114.57,0.00033698,2]
[310204439,1704400266896,-500.0,0.00033698,2]
[310204440,1704400266906,-1863.03,0.00033698,2]
[310204441,1704400266916,-500.0,0.00033698,2]
[310204442,1704400266927,-500.0,0.00033698,2]
[310204443,1704400266936,-500.0,0.00033698,2]
[310204444,1704400266948,-625.26,0.00033698,2]
[310204445,1704400266957,-500.0,0.00033698,2]
[310204446,1704400266967,-500.0,0.00033698,2]
[310204447,1704400266976,-500.0,0.00033698,2]
[310204448,1704400266986,-1822.1,0.00033698,2]
[310204449,1704400266996,-500.0,0.00033698,2]
[310204450,1704400267005,-301.37115561,0.00033698,2]
[310204451,1704400267015,-524.64,0.00033698,2]
[310204452,1704400267025,-715.91,0.00033698,2]
[310204453,1704400267035,-1359.04,0.00033698,2]
[310204454,1704400267045,-500.0,0.00033698,2]
[310204455,1704400267054,-1000.0,0.000337,2]
[310204456,1704400267064,-1474.70996629,0.0003375,5]
[310204457,1704400267073,-157.03,0.00033759,2]
[310204458,1704400267083,-202.0,0.00033777,8]
[310204459,1704400267093,-241.18,0.00033795,2]
[310204460,1704400267102,-2375.80439713,0.00033909,2]
[310204461,1704400267111,-2264.57571559,0.00033924,2]
[310204462,1704400267121,-2511.87880601,0.00033942,2]
[310204463,1704400267130,-412.93661815,0.00033954,6]
[310204464,1704400267140,-2508.66108125,0.00033955,2]
[310204465,1704400267149,-241.18,0.00033961,2]
[310204466,1704400267159,-500.0,0.00033971,2]
[310204467,1704400267169,-500.0,0.00033971,2]
[310204468,1704400267178,-1013.2,0.00033971,2]
[310204469,1704400267187,-1013.2,0.00033971,2]
[310204470,1704400267198,-413.57232369,0.00033972,2]
[310204471,1704400267207,-500.0,0.00033972,2]
[310204472,1704400267216,-500.0,0.00033972,2]
[310204473,1704400267226,-500.0,0.00033972,2]
[310204474,1704400267235,-500.0,0.00033972,2]
[310204475,1704400267245,-500.0,0.00033972,2]
[310204476,1704400267255,-500.0,0.00033972,2]
[310204477,1704400267265,-164.59549078,0.00033972,2]
[310204478,1704400267274,-500.0,0.00033972,2]
[310204479,1704400267284,-500.0,0.00033972,2]
[310204480,1704400267293,-500.0,0.00033972,2]
[310204481,1704400267304,-500.0,0.00033972,2]
[310204482,1704400267313,-500.0,0.00033972,2]
[310204483,1704400267323,-500.0,0.00033972,2]
[310204484,1704400267499,-500.0,0.00033972,2]
[310204485,1704400267509,-500.0,0.00033972,2]
[310204486,1704400267518,-500.0,0.00033972,2]
[310204487,1704400267528,-500.0,0.00033972,2]
[310204488,1704400267537,-500.0,0.00033972,2]
[310204489,1704400267547,-500.0,0.00033972,2]
[310204490,1704400267557,-500.0,0.00033972,2]
[310204491,1704400267567,-500.0,0.00033972,2]
[310204492,1704400267576,-500.0,0.00033972,2]
[310204493,1704400267585,-500.0,0.00033972,2]
[310204494,1704400267594,-637.02,0.00033972,2]
[310204495,1704400267604,-500.0,0.00033972,2]
[310204496,1704400267614,-500.0,0.00033972,2]
[310204497,1704400267623,-500.0,0.00033972,2]
[310204498,1704400267632,-500.0,0.00033972,2]
[310204499,1704400267642,-254.44688754,0.00033972,2]
[310204500,1704400267651,-500.0,0.00033972,2]
[310204501,1704400267661,-500.0,0.00033972,2]
[310204502,1704400267670,-500.0,0.00033972,2]
[310204503,1704400267679,-500.0,0.00033972,2]
[310204504,1704400267689,-500.0,0.00033972,2]
[310204505,1704400267699,-500.0,0.00033972,2]
[310204506,1704400267708,-500.0,0.00033972,2]
[310204507,1704400267718,-500.0,0.00033972,2]
[310204508,1704400267727,-500.0,0.00033972,2]
[310204509,1704400267737,-500.0,0.00033972,2]
[310204510,1704400267746,-500.0,0.00033972,2]
[310204511,1704400267755,-500.0,0.00033972,2]
[310204512,1704400267764,-500.0,0.00033972,2]
[310204513,1704400267777,-500.0,0.00033972,2]
[310204514,1704400267787,-500.0,0.00033972,2]
[310204515,1704400267796,-500.0,0.00033972,2]
[310204516,1704400267806,-500.0,0.00033972,2]
[310204517,1704400267815,-500.0,0.00033972,2]
[310204518,1704400267824,-500.0,0.00033972,2]
[310204519,1704400267835,-500.0,0.00033972,2]
[310204520,1704400267845,-510.4575832,0.00033972,2]
[310204521,1704400267854,-500.0,0.00033972,2]
[310204522,1704400267864,-500.0,0.00033972,2]
[310204523,1704400267874,-500.0,0.00033972,2]
[310204524,1704400267883,-500.0,0.00033972,2]
[310204525,1704400267893,-500.0,0.00033972,2]
[310204526,1704400267903,-500.0,0.00033972,2]
[310204527,1704400267913,-500.0,0.00033972,2]
[310204528,1704400267922,-500.0,0.00033972,2]
[310204529,1704400267932,-500.0,0.00033972,2]
[310204530,1704400267942,-593.97008496,0.00033972,2]
[310204531,1704400267951,-500.0,0.00033972,2]
[310204532,1704400267960,-500.0,0.00033972,2]
[310204533,1704400267969,-432.46393562,0.00033972,2]
[310204534,1704400267978,-500.0,0.00033972,2]
[310204535,1704400267987,-500.0,0.00033972,2]
[310204536,1704400267996,-500.0,0.00033972,2]
[310204537,1704400268006,-500.0,0.00033972,2]
[310204538,1704400268015,-500.0,0.00033972,2]
[310204539,1704400268024,-500.0,0.00033972,2]
[310204540,1704400268035,-500.0,0.00033972,2]
[310204541,1704400268044,-809.33,0.00033972,2]
[310204542,1704400268053,-500.0,0.00033972,2]
[310204543,1704400268062,-500.0,0.00033972,2]
[310204544,1704400268072,-500.0,0.00033972,2]
[310204545,1704400268081,-500.0,0.00033972,2]
[310204546,1704400268090,-249.91199058,0.00033972,2]
[310204547,1704400268100,-500.0,0.00033972,2]
[310204548,1704400268109,-500.0,0.00033972,2]
[310204549,1704400268118,-500.0,0.00033972,2]
[310204550,1704400268128,-526.78758846,0.00033972,2]
[310204551,1704400268137,-500.0,0.00033972,2]
[310204552,1704400268146,-500.0,0.00033972,2]
[310204553,1704400268155,-500.0,0.00033972,2]
[310204554,1704400268165,-500.0,0.00033972,2]
[310204555,1704400268175,-500.0,0.00033972,2]
[310204556,1704400268185,-500.0,0.00033972,2]
[310204557,1704400268196,-500.0,0.00033972,2]
[310204558,1704400268206,-500.0,0.00033972,2]
[310204559,1704400268215,-500.0,0.00033972,2]
[310204560,1704400268225,-500.0,0.00033972,2]
[310204561,1704400268234,-500.0,0.00033972,2]
[310204562,1704400268244,-500.0,0.00033972,2]
[310204563,1704400268252,-500.0,0.00033972,2]
[310204564,1704400268262,-500.0,0.00033972,2]
[310204565,1704400268271,-500.0,0.00033972,2]
[310204566,1704400268280,-500.0,0.00033972,2]
[310204567,1704400268289,-500.0,0.00033972,2]
[310204568,1704400268298,-570.2,0.00033972,2]
[310204569,1704400268307,-500.0,0.00033972,2]
[310204570,1704400268317,-500.0,0.00033972,2]
[310204571,1704400268326,-500.0,0.00033972,2]
[310204572,1704400268336,-500.0,0.00033972,2]
[310204573,1704400268345,-500.0,0.00033972,2]
[310204574,1704400268354,-611.41568093,0.00033972,2]
[310204575,1704400268363,-500.0,0.00033972,2]
[310204576,1704400268372,-511.41,0.00033972,2]
[310204577,1704400268381,-500.0,0.00033972,2]
[310204578,1704400268390,-500.0,0.00033972,2]
[310204579,1704400268399,-500.0,0.00033972,2]
[310204580,1704400268408,-500.0,0.00033972,2]
[310204581,1704400268417,-500.0,0.00033972,2]
[310204582,1704400268426,-500.0,0.00033972,2]
[310204583,1704400268435,-500.0,0.00033972,2]
[310204584,1704400268445,-500.0,0.00033972,2]
[310204585,1704400268454,-500.0,0.00033972,2]
[310204586,1704400268463,-500.0,0.00033972,2]
[310204587,1704400268472,-500.0,0.00033972,2]
[310204588,1704400268481,-500.0,0.00033972,2]
[310204589,1704400268490,-500.0,0.00033972,2]
[310204590,1704400268500,-500.0,0.00033972,2]
[310204591,1704400268509,-500.0,0.00033972,2]
[310204592,1704400268518,-500.0,0.00033972,2]
[310204593,1704400268528,-826.26,0.00033972,2]
[310204594,1704400268537,-520.25071114,0.00033972,2]
[310204595,1704400268546,-500.0,0.00033972,2]
[310204596,1704400268555,-500.0,0.00033972,2]
[310204597,1704400268564,-500.0,0.00033972,2]
[310204598,1704400268573,-1785.82,0.00033972,2]
[310204599,1704400268581,-541.66,0.00033972,2]
[310204600,1704400268590,-500.0,0.00033972,2]
[310204601,1704400268599,-500.0,0.00033972,2]
[310204602,1704400268608,-500.0,0.00033972,2]
[310204603,1704400268616,-500.0,0.00033972,2]
[310204604,1704400268626,-702.0,0.00033972,2]
[310204605,1704400268634,-500.0,0.00033972,2]
[310204606,1704400268643,-500.0,0.00033972,2]
[310204607,1704400268653,-500.0,0.00033972,2]
[310204608,1704400268662,-500.0,0.00033972,2]
[310204609,1704400268671,-500.0,0.00033972,2]
[310204610,1704400268680,-500.0,0.00033972,2]
[310204611,1704400268689,-500.0,0.00033972,2]
[310204612,1704400268699,-713.92,0.00033972,2]
[310204613,1704400268711,-508.08,0.00033972,2]
[310204614,1704400268720,-500.0,0.00033972,2]
[310204615,1704400268729,-500.0,0.00033972,2]
[310204616,1704400268738,-500.0,0.00033972,2]
[310204617,1704400268747,-500.0,0.00033972,2]
[310204618,1704400268756,-500.0,0.00033972,2]
[310204619,1704400268765,-500.0,0.00033972,2]
[310204620,1704400268775,-500.0,0.00033972,2]
[310204621,1704400268784,-605.7,0.00033972,2]
[310204622,1704400268794,-500.0,0.00033972,2]
[310204623,1704400268802,-500.0,0.00033972,2]
[310204624,1704400268812,-500.0,0.00033972,2]
[310204625,1704400268821,-617.34,0.00033972,2]
[310204626,1704400268831,-500.0,0.00033972,2]
[310204627,1704400268840,-260.0,0.00033972,2]
[310204628,1704400268850,-500.0,0.00033972,2]
[310204629,1704400268859,-1053.81,0.00033972,2]
[310204630,1704400268869,-500.0,0.00033972,2]
[310204631,1704400268878,-500.0,0.00033972,2]
[310204632,1704400268887,-193.89748949,0.00033972,2]
[310204633,1704400268896,-500.0,0.00033972,2]
[310204634,1704400268905,-500.0,0.00033972,2]
[310204635,1704400268914,-500.0,0.00033972,2]
[310204636,1704400268924,-500.0,0.00033972,2]
[310204637,1704400268933,-500.0,0.00033972,2]
[310204638,1704400268942,-619.12174039,0.00033972,2]
[310204639,1704400268953,-500.0,0.00033972,2]
[310204640,1704400268962,-500.0,0.00033972,2]
[310204641,1704400268971,-500.0,0.00033972,2]
[310204642,1704400268980,-500.0,0.00033972,2]
[310204643,1704400268990,-500.0,0.00033972,2]
[310204644,1704400268999,-637.91,0.00033972,2]
[310204645,1704400269008,-500.0,0.00033972,2]
[310204646,1704400269017,-642.96,0.00033972,2]
[310204647,1704400269026,-500.0,0.00033972,2]
[310204648,1704400269035,-500.0,0.00033972,2]
[310204649,1704400269045,-500.0,0.00033972,2]
[310204650,1704400269054,-500.0,0.00033972,2]
[310204651,1704400269063,-500.0,0.00033972,2]
[310204652,1704400269072,-500.0,0.00033972,2]
[310204653,1704400269081,-500.0,0.00033972,2]
[310204654,1704400269091,-500.0,0.00033972,2]
[310204655,1704400269100,-500.0,0.00033972,2]
[310204656,1704400269109,-500.0,0.00033972,2]
[310204657,1704400269118,-500.0,0.00033972,2]
[310204658,1704400269127,-500.0,0.00033972,2]
[310204659,1704400269136,-500.0,0.00033972,2]
[310204660,1704400269146,-500.0,0.00033972,2]
[310204661,1704400269155,-500.0,0.00033972,2]
[310204662,1704400269164,-500.0,0.00033972,2]
[310204663,1704400269173,-275.17094263,0.00033972,2]
[310204664,1704400269182,-500.0,0.00033972,2]
[310204665,1704400269191,-500.0,0.00033972,2]
[310204666,1704400269202,-500.0,0.00033972,2]
[310204667,1704400269211,-500.0,0.00033972,2]
[310204668,1704400269221,-500.0,0.00033972,2]
[310204669,1704400269230,-500.0,0.00033972,2]
[310204670,1704400269238,-500.0,0.00033972,2]
[310204671,1704400269247,-500.0,0.00033972,2]
[310204672,1704400269257,-490.44738754,0.00033972,2]
[310204673,1704400269266,-500.0,0.00033972,2]
[310204674,1704400269278,-577.48,0.00033972,2]
[310204675,1704400269288,-500.0,0.00033972,2]
[310204676,1704400269297,-500.0,0.00033972,2]
[310204677,1704400269307,-500.0,0.00033972,2]
[310204678,1704400269316,-500.0,0.00033972,2]
[310204679,1704400269325,-500.0,0.00033972,2]
[310204680,1704400269334,-500.0,0.00033972,2]
[310204681,1704400269343,-583.92,0.00033972,2]
[310204682,1704400269353,-500.0,0.00033972,2]
[310204683,1704400269362,-500.0,0.00033972,2]
[310204684,1704400269371,-500.0,0.00033972,2]
[310204685,1704400269381,-500.0,0.00033972,2]
[310204686,1704400269393,-500.0,0.00033972,2]
[310204687,1704400269403,-500.0,0.00033972,2]
[310204688,1704400269412,-163.51540153,0.00033972,2]
[310204689,1704400269421,-500.0,0.00033972,2]
[310204690,1704400269431,-1262.62,0.00033972,2]
[310204691,1704400269441,-644.12,0.00033972,2]
[310204692,1704400269451,-500.0,0.00033972,2]
[310204693,1704400269461,-500.0,0.00033972,2]
[310204694,1704400269471,-500.0,0.00033972,2]
[310204695,1704400269480,-500.0,0.00033972,2]
[310204696,1704400269490,-500.0,0.00033972,2]
[310204697,1704400269500,-500.0,0.00033972,2]
[310204698,1704400269509,-500.0,0.00033972,2]
[310204699,1704400269518,-500.0,0.00033972,2]
[310204700,1704400269528,-500.0,0.00033972,2]
[310204701,1704400269537,-500.0,0.00033972,2]
[310204702,1704400269547,-501.37,0.00033972,2]
[310204703,1704400269557,-500.0,0.00033972,2]
[310204704,1704400269566,-500.0,0.00033972,2]
[310204705,1704400269576,-500.0,0.00033972,2]
[310204706,1704400269585,-511.59,0.00033972,2]
[310204707,1704400269594,-500.0,0.00033972,2]
[310204708,1704400269604,-500.0,0.00033972,2]
[310204709,1704400269613,-500.0,0.00033972,2]
[310204710,1704400269623,-500.0,0.00033972,2]
[310204711,1704400269632,-500.0,0.00033972,2]
[310204712,1704400269641,-500.0,0.00033972,2]
[310204713,1704400269651,-500.0,0.00033972,2]
[310204714,1704400269660,-500.0,0.00033972,2]
[310204715,1704400269670,-500.0,0.00033972,2]
[310204716,1704400269679,-386.50435477,0.00033972,2]
[310204717,1704400269688,-500.0,0.00033972,2]
[310204718,1704400269699,-500.0,0.00033972,2]
[310204719,1704400269855,-500.0,0.00033972,2]
[310204720,1704400269865,-500.0,0.00033972,2]
[310204721,1704400269875,-500.0,0.00033972,2]
[310204722,1704400269884,-159.65,0.00033972,2]
[310204723,1704400269893,-210.64916882,0.00033972,2]
[310204724,1704400269903,-500.0,0.00033972,2]
[310204725,1704400269912,-500.0,0.00033972,2]
[310204726,1704400269921,-402.08870863,0.00033972,2]
[310204727,1704400269932,-500.0,0.00033972,2]
[310204728,1704400269941,-984.97,0.00033972,2]
[310204729,1704400269952,-500.0,0.00033972,2]
[310204730,1704400269961,-500.0,0.00033972,2]
[310204731,1704400269971,-500.0,0.00033972,2]
[310204732,1704400269980,-550.66357076,0.00033972,2]
[310204733,1704400269989,-500.0,0.00033972,2]
[310204734,1704400269998,-500.0,0.00033972,2]
[310204735,1704400270008,-500.0,0.00033972,2]
[310204736,1704400270018,-500.0,0.00033972,2]
[310204737,1704400270027,-500.0,0.00033972,2]
[310204738,1704400270036,-500.0,0.00033972,2]
[310204739,1704400270045,-500.0,0.00033972,2]
[310204740,1704400270054,-500.0,0.00033972,2]
[310204741,1704400270063,-500.0,0.00033972,2]
[310204742,1704400270073,-500.0,0.00033972,2]
[310204743,1704400270083,-500.0,0.00033972,2]
[310204744,1704400270092,-2813.94,0.00033972,2]
[310204745,1704400270101,-500.0,0.00033972,2]
[310204746,1704400270110,-500.0,0.00033972,2]
[310204747,1704400270119,-500.0,0.00033972,2]
[310204748,1704400270127,-500.0,0.00033972,2]
[310204749,1704400270137,-1043.97,0.00033972,2]
[310204750,1704400270146,-4226.54,0.00033972,2]
[310204751,1704400270155,-815.95,0.00033972,2]
[310204752,1704400270165,-579.28,0.00033972,2]
[310204753,1704400270175,-500.0,0.00033972,2]
[310204754,1704400270184,-500.0,0.00033972,2]
[310204755,1704400270195,-500.0,0.00033972,2]
[310204756,1704400270205,-378.18345594,0.00033972,2]
[310204757,1704400270214,-500.0,0.00033972,2]
[310204758,1704400270224,-500.0,0.00033972,2]
[310204759,1704400270233,-500.93,0.00033972,2]
[310204760,1704400270242,-1545.25,0.00033972,2]
[310204761,1704400270251,-500.0,0.00033972,2]
[310204762,1704400270261,-896.7,0.00033972,2]
[310204763,1704400270270,-642.85986328,0.00033972,2]
[310204764,1704400270280,-500.0,0.00033972,2]
[310204765,1704400270290,-500.0,0.00033972,2]
[310204766,1704400270299,-1118.72,0.00033972,2]
[310204767,1704400270309,-766.02,0.00033972,2]
[310204768,1704400270318,-525.53,0.00033972,2]
[310204769,1704400270327,-1839.95,0.00033972,2]
[310204770,1704400270337,-1961.18,0.00033972,2]
[310204771,1704400270346,-666.57,0.00033972,2]
[310204772,1704400270356,-500.0,0.00033972,2]
[310204773,1704400270364,-650.88,0.00033972,2]
[310204774,1704400270374,-1047.53,0.00033972,2]
[310204775,1704400270383,-500.0,0.00033972,2]
[310204776,1704400270392,-2743.39,0.00033972,2]
[310204777,1704400270401,-500.0,0.00033972,2]
[310204778,1704400270411,-6488.11,0.00033972,2]
[310204779,1704400270420,-500.0,0.00033972,2]
[310204780,1704400270430,-1207.75,0.00033972,2]
[310204781,1704400270439,-500.0,0.00033972,2]
[310204782,1704400270449,-802.32,0.00033972,2]
[310204783,1704400270458,-500.0,0.00033972,2]
[310204784,1704400270468,-500.0,0.00033972,2]
[310204785,1704400270477,-500.0,0.00033972,2]
[310204786,1704400270486,-500.0,0.00033972,2]
[310204787,1704400270495,-2300.26,0.00033972,2]
[310204788,1704400270505,-500.0,0.00033972,2]
[310204789,1704400270514,-500.0,0.00033972,2]
[310204790,1704400270524,-2212.73,0.00033972,2]
[310204791,1704400270533,-564.62,0.00033972,2]
[310204792,1704400270542,-500.0,0.00033972,2]
[310204793,1704400270551,-500.0,0.00033972,2]
[310204794,1704400270561,-8818.63,0.00033972,2]
[310204795,1704400270570,-554.47,0.00033972,2]
[310204796,1704400270579,-500.0,0.00033972,2]
[310204797,1704400270588,-500.0,0.00033972,2]
[310204798,1704400270597,-500.0,0.00033972,2]